Workbook

Sheet 南京市鼓楼区残疾人两项补贴发放统计表
A1: 鼓楼区残疾人两项补贴统计表（2025年11月）
A2: 序 号 | B2: 发 放 单 位 | C2: 困难残疾人生活补贴（万元） | Q2: 重度残疾人护理（服务）补贴（万元） | V2: 实发金额合计（万元） | W2: 拨付金额（万元）（=实发-助残服务）
C3: 低保内 | I3: 低保外 | O3: 合计 | Q3: 重残 （140元） | S3: 低保（边缘）内重残 (400元服务) | U3: 合计
C4: 重残 （低保金50%） | E4: 3、4级精、智残 （低保金40%） | G4: 非重残 （低保金25%） | I4: 重残 （低保金100%） | K4: 特殊困难残疾人 （低保金60%） | M4: 无业无收入3、4级精神、智力残 （低保金40%）
C5: 人数 | D5: 补贴 金额 | E5: 人数 | F5: 补贴 金额 | G5: 人数 | H5: 补贴 金额 | I5: 人数 | J5: 补贴 金额 | K5: 人数 | L5: 补贴 金额 | M5: 人数 | N5: 补贴 金额 | O5: 人数 | P5: 补贴 金额 | Q5: 人数 | R5: 补贴 金额 | S5: 人数 | T5: 补贴 金额 | U5: 金 额
A6: 1 | B6: 湖南路 | C6: 26 | D6: 1.449500 | E6: 8 | F6: 0.3568 | G6: 12 | H6: 0.334500 | I6: 43 | J6: 4.7945 | K6: 2 | L6: 0.1338 | M6: 24 | N6: 1.0704 | O6: =C6+E6+G6+I6+K6+M6 -> 115 | P6: =N6+L6+J6+H6+F6+D6 -> 8.139500 | Q6: 340 | R6: 4.7740 | S6: 7 | T6: =400*S6/10000 -> 0.2800 | U6: =R6+T6 -> 5.0540 | V6: =U6+P6 -> 13.193500 | W6: =V6-T6 -> 12.913500
A7: 2 | B7: 宁海路 | C7: 33 | D7: 1.839750 | E7: 22 | F7: 0.9812 | G7: 7 | H7: 0.195125 | I7: 50 | J7: 5.5750 | K7: 1 | L7: 0.0669 | M7: 34 | N7: 1.5164 | O7: 147 | P7: 10.174375 | Q7: 343 | R7: 4.8020 | S7: 10 | T7: 0.4000 | U7: 5.2020 | V7: 15.376375 | W7: 14.976375
A8: 3 | B8: 中央门 | C8: 52 | D8: 2.899000 | E8: 33 | F8: 1.4718 | G8: 28 | H8: 0.780500 | I8: 103 | J8: 11.5960 | K8: 2 | L8: 0.1338 | M8: 32 | N8: 1.5164 | O8: 250 | P8: 18.397500 | Q8: 551 | R8: 7.7840 | S8: 24 | T8: 0.9600 | U8: 8.7440 | V8: 27.141500 | W8: 26.181500
A9: 4 | B9: 挹江门 | C9: 43 | D9: =557.5*C9/10000 -> 2.397250 | E9: 18 | F9: =446*E9/10000 -> 0.8028 | G9: 18 | H9: =278.75*G9/10000 -> 0.501750 | I9: 69 | J9: 7.6935 | K9: 2 | L9: 0.1338 | M9: 32 | N9: 1.4272 | O9: 182 | P9: 12.956300 | Q9: =414+43 -> 457 | R9: =5.838+0.602 -> 6.4400 | S9: 7 | T9: 0.2800 | U9: 6.7200 | V9: 19.676300 | W9: 19.396300
A10: 5 | B10: 华侨路 | C10: 30 | D10: =(557.5*C10/10000) -> 1.672500 | E10: 8 | F10: =446*E10/10000 -> 0.3568 | G10: 10 | H10: =278.75*G10/10000+0.027875 -> 0.306625 | I10: 41 | J10: =1115*I10/10000+0.1115 -> 4.6830 | K10: 1 | L10: =669*K10/10000 -> 0.0669 | M10: 17 | N10: =446*M10/10000 -> 0.7582 | O10: 107 | P10: 7.844025 | Q10: 264 | R10: =140*Q10/10000+0.014 -> 3.7100 | S10: 7 | T10: 0.2800 | U10: 3.9900 | V10: 11.834025 | W10: 11.554025
A11: 6 | B11: 江东 | C11: 20 | D11: 1.115000 | E11: 14 | F11: 0.6244 | G11: 5 | H11: 0.139375 | I11: 50 | J11: 5.5750 | K11: 0 | L11: 0.0000 | M11: 14 | N11: 0.6244 | O11: 103 | P11: 8.078175 | Q11: 294 | R11: 4.1160 | S11: 4 | T11: 0.1600 | U11: 4.2760 | V11: 12.354175 | W11: 12.194175
A12: 7 | B12: 凤凰 | C12: 31 | D12: 1.728250 | E12: 27 | F12: 1.2042 | G12: 27 | H12: 0.752625 | I12: 71 | J12: 7.9165 | K12: 0 | L12: 0.0000 | M12: 23 | N12: 1.0258 | O12: 179 | P12: 12.627375 | Q12: 373 | R12: 5.2220 | S12: 3 | T12: 0.1200 | U12: 5.3420 | V12: 17.969375 | W12: 17.849375
A13: 8 | B13: 热河南路 | C13: 26 | D13: 1.449500 | E13: 18 | F13: 0.8028 | G13: 19 | H13: 0.529625 | I13: 46 | J13: 5.1290 | K13: 2 | L13: =669*K13/10000 -> 0.1338 | M13: 16 | N13: 0.7136 | O13: 127 | P13: 8.758325 | Q13: 329 | R13: 4.6200 | S13: 5 | T13: 0.2000 | U13: 4.8200 | V13: 13.578325 | W13: 13.378325
A14: 9 | B14: 下关 | C14: 58 | D14: 3.233500 | E14: 30 | F14: 1.3380 | G14: 24 | H14: 0.669000 | I14: 60 | J14: =6.69+0.1115 -> 6.8015 | K14: 0 | L14: 0.0000 | M14: 16 | N14: 0.7136 | O14: 188 | P14: 12.755600 | Q14: 392 | R14: 5.4880 | S14: 10 | T14: 0.4000 | U14: 5.8880 | V14: 18.643600 | W14: 18.243600
A15: 10 | B15: 建宁路 | C15: 32 | D15: 1.784000 | E15: 29 | F15: 1.2934 | G15: 8 | H15: 0.223000 | I15: 52 | J15: 6.0210 | K15: 0 | L15: 0.0000 | M15: 15 | N15: 0.6690 | O15: 136 | P15: 9.990400 | Q15: 300 | R15: 4.2140 | S15: 4 | T15: 0.1600 | U15: 4.3740 | V15: 14.364400 | W15: 14.204400
A16: 11 | B16: 小市 | C16: 66 | D16: 3.679500 | E16: 44 | F16: 1.9624 | G16: 32 | H16: 0.892000 | I16: 75 | J16: 8.3625 | K16: 2 | L16: 0.1338 | M16: 26 | N16: 1.2042 | O16: 245 | P16: 16.234400 | Q16: 424 | R16: 5.9360 | S16: 17 | T16: =400*S16/10000 -> 0.6800 | U16: 6.6160 | V16: 22.850400 | W16: 22.170400
A17: 12 | B17: 宝塔桥 | C17: 99 | D17: =C17*0.05575 -> 5.519250 | E17: 68 | F17: =E17*0.0446 -> 3.0328 | G17: 45 | H17: =G17*0.027875 -> 1.254375 | I17: 72 | J17: 8.1395 | K17: 0 | L17: 0.0000 | M17: 56 | N17: 2.5868 | O17: 340 | P17: 20.532725 | Q17: 508 | R17: 7.1400 | S17: 24 | T17: 0.9600 | U17: 8.1000 | V17: 28.632725 | W17: 27.672725
A18: 13 | B18: 幕府山 | C18: 51 | D18: 2.843250 | E18: 31 | F18: 1.3826 | G18: 22 | H18: 0.613250 | I18: 61 | J18: 6.8015 | K18: 0 | L18: 0.0000 | M18: 14 | N18: 0.6244 | O18: 179 | P18: 12.265000 | Q18: 319 | R18: 4.4660 | S18: 7 | T18: 0.2800 | U18: 4.7460 | V18: 17.011000 | W18: 16.731000
A19: 合计 | C19: =SUM(C6:C18) -> 567 | D19: 31.610250 | E19: 350 | F19: 15.6100 | G19: 257 | H19: 7.191750 | I19: 793 | J19: 89.0885 | K19: 12 | L19: 0.8028 | M19: 319 | N19: 14.4504 | O19: 2298 | P19: 158.753700 | Q19: 4894 | R19: 68.7120 | S19: 129 | T19: 5.1600 | U19: 73.8720 | V19: 232.625700 | W19: 227.465700
A20: 备注 | C20: 鼓楼区11月补发：1、生活补贴：低内25%，1人278.75元；低外100%，6人6690元；低外40%，5人2230元。合计9198.75元。2、护理补贴：14人1960元。 | U20: =P19+U19 -> 232.625700
